fUSD/lending_fUSD_20240412
["ID","MTS","AMOUNT","RATE_DAILY","PERIOD"]
[322267518,1712920259275,-500.0,0.00029315,2]
[322267519,1712920259285,-500.0,0.00029315,2]
[322267520,1712920259296,-930.87,0.00029315,2]
[322267521,1712920259306,-821.08,0.00029315,2]
[322267522,1712920259316,-500.0,0.00029315,2]
[322267523,1712920259325,-500.0,0.00029315,2]
[322267524,1712920259337,-500.0,0.00029315,2]
[322267525,1712920259347,-1035.94,0.00029315,2]
[322267526,1712920259357,-1904.72,0.00029315,2]
[322267527,1712920259367,-1717.34,0.00029315,2]
[322267528,1712920259377,-500.0,0.00029315,2]
[322267529,1712920259386,-500.0,0.00029315,2]
[322267530,1712920259395,-500.0,0.00029315,2]
[322267531,1712920259404,-2052.73,0.00029315,2]
[322267532,1712920259414,-641.93,0.00029315,2]
[322267533,1712920259423,-604.09,0.00029315,2]
[322267534,1712920259432,-1124.32,0.00029315,2]
[322267535,1712920259443,-1070.46,0.00029315,2]
[322267536,1712920259453,-500.0,0.00029315,2]
[322267537,1712920259463,-1062.21,0.00029315,2]
[322267538,1712920259481,-500.0,0.00029315,2]
[322267539,1712920259496,-604.39,0.00029315,2]
[322267540,1712920259507,-500.0,0.00029315,2]
[322267541,1712920259517,-500.0,0.00029315,2]
[322267542,1712920259527,-1229.15,0.00029315,2]
[322267543,1712920259536,-500.0,0.00029315,2]
[322267544,1712920259545,-9924.52,0.00029315,2]
[322267545,1712920259556,-500.0,0.00029315,2]
[322267546,1712920259567,-888.39,0.00029315,2]
[322267547,1712920259576,-1186.85,0.00029315,2]
[322267548,1712920259588,-500.0,0.00029315,2]
[322267549,1712920259599,-500.0,0.00029315,2]
[322267550,1712920259612,-500.0,0.00029315,2]
[322267551,1712920259622,-500.0,0.00029315,2]
[322267552,1712920259631,-618.15,0.00029315,2]
[322267553,1712920259641,-500.0,0.00029315,2]
[322267554,1712920259651,-500.0,0.00029315,2]
[322267555,1712920259660,-500.0,0.00029315,2]
[322267556,1712920259670,-800.47,0.00029315,2]
[322267557,1712920259680,-510.32,0.00029315,2]
[322267558,1712920259689,-684.38,0.00029315,2]
[322267559,1712920259699,-844.56,0.00029315,2]
[322267560,1712920259710,-500.0,0.00029315,2]
[322267561,1712920259719,-512.23,0.00029315,2]
[322267562,1712920259729,-500.0,0.00029315,2]
[322267563,1712920259739,-1528.81,0.00029315,2]
[322267564,1712920259748,-763.34,0.00029315,2]
[322267565,1712920259758,-500.0,0.00029315,2]
[322267566,1712920259769,-500.0,0.00029315,2]
[322267567,1712920259778,-3764.32,0.00029315,2]
[322267568,1712920259788,-1505.66,0.00029315,2]
[322267569,1712920259798,-500.0,0.00029315,2]
[322267570,1712920259810,-356.43800266,0.00029315,2]
[322267571,1712920259819,-500.0,0.00029315,2]
[322267572,1712920259829,-925.96,0.00029315,2]
[322267573,1712920259838,-500.0,0.00029315,2]
[322267574,1712920259849,-500.0,0.00029315,2]
[322267575,1712920259858,-500.0,0.00029315,2]
[322267576,1712920259870,-500.0,0.00029315,2]
[322267577,1712920259881,-683.24,0.00029315,2]
[322267578,1712920259891,-641.27781528,0.00029315,2]
[322267579,1712920259902,-500.0,0.00029589,2]
[322267580,1712920259913,-500.0,0.00029589,2]
[322267581,1712920259923,-500.0,0.00029589,2]
[322267582,1712920259934,-625.42753241,0.00029589,2]
[322267583,1712920259944,-2625.19,0.00029589,2]
[322267584,1712920259955,-169.22798993,0.00029589,2]
[322267585,1712920259965,-500.0,0.00029589,2]
[322267586,1712920259975,-500.0,0.00029589,2]
[322267587,1712920259986,-500.0,0.00029589,2]
[322267588,1712920259995,-500.0,0.00029589,2]
[322267589,1712920260005,-500.0,0.00029589,2]
[322267590,1712920260014,-500.0,0.00029589,2]
[322267591,1712920260024,-500.0,0.00029589,2]
[322267592,1712920260033,-500.0,0.00029589,2]
[322267593,1712920260042,-500.0,0.00029589,2]
[322267594,1712920260051,-150.0,0.00029589,2]
[322267595,1712920260061,-356.77395246,0.00029589,2]
[322267596,1712920260070,-500.0,0.00029589,2]
[322267597,1712920260080,-500.0,0.00029589,2]
[322267598,1712920260089,-500.0,0.00029589,2]
[322267599,1712920260100,-500.0,0.00029589,2]
[322267600,1712920260110,-500.0,0.00029589,2]
[322267601,1712920260119,-500.0,0.00029589,2]
[322267602,1712920260129,-553.78145633,0.00029589,2]
[322267603,1712920260138,-513.6,0.00029589,2]
[322267604,1712920260149,-500.0,0.00029589,2]
[322267605,1712920260159,-1076.28,0.00029589,2]
[322267606,1712920260171,-500.0,0.00029589,2]
[322267607,1712920260180,-500.0,0.00029589,2]
[322267608,1712920260190,-500.0,0.00029589,2]
[322267609,1712920260200,-4360.31,0.00029589,2]
[322267610,1712920260210,-500.0,0.00029589,2]
[322267611,1712920260219,-578.33,0.00029589,2]
[322267612,1712920260229,-589.66,0.00029589,2]
[322267613,1712920260238,-500.0,0.00029589,2]
[322267614,1712920260249,-500.0,0.00029589,2]
[322267615,1712920260259,-500.0,0.00029589,2]
[322267616,1712920260269,-500.0,0.00029589,2]
[322267617,1712920260278,-453.51065179,0.00029589,2]
[322267618,1712920260288,-500.0,0.00029589,2]
[322267619,1712920260298,-500.0,0.00029589,2]
[322267620,1712920260308,-500.0,0.00029589,2]
[322267621,1712920260318,-834.74,0.00029589,2]
[322267622,1712920260327,-500.0,0.00029589,2]
[322267623,1712920260338,-500.0,0.00029589,2]
[322267624,1712920260348,-503.47,0.00029589,2]
[322267625,1712920260358,-550.78,0.00029589,2]
[322267626,1712920260369,-504.37,0.00029589,2]
[322267627,1712920260379,-500.0,0.00029589,2]
[322267628,1712920260388,-220.79694398,0.00029589,2]
[322267629,1712920260397,-667.44,0.00029589,2]
[322267630,1712920260407,-500.0,0.00029589,2]
[322267631,1712920260416,-730.85,0.00029589,2]
[322267632,1712920260426,-500.0,0.00029589,2]
[322267633,1712920260435,-1391.19,0.00029589,2]
[322267634,1712920260445,-500.0,0.00029589,2]
[322267635,1712920260454,-592.01913978,0.00029589,2]
[322267636,1712920260464,-724.59,0.00029589,2]
[322267637,1712920260473,-500.0,0.00029589,2]
[322267638,1712920260483,-652.05,0.00029589,2]
[322267639,1712920260493,-2207.75,0.00029589,2]
[322267640,1712920260503,-500.0,0.00029589,2]
[322267641,1712920260513,-500.0,0.00029589,2]
[322267642,1712920260522,-500.0,0.00029589,2]
[322267643,1712920260531,-500.0,0.00029589,2]
[322267644,1712920260541,-500.0,0.00029589,2]
[322267645,1712920260551,-1077.64,0.00029589,2]
[322267646,1712920260561,-500.0,0.00029589,2]
[322267647,1712920260571,-500.0,0.00029589,2]
[322267648,1712920260582,-500.0,0.00029589,2]
[322267649,1712920260592,-500.0,0.00029589,2]
[322267650,1712920260602,-500.0,0.00029589,2]
[322267651,1712920260614,-1068.06,0.00029589,2]
[322267652,1712920260626,-500.0,0.00029589,2]
[322267653,1712920260636,-1520.01,0.00029589,2]
[322267654,1712920260645,-2261.68,0.00029589,2]
[322267655,1712920260656,-1340.25,0.00029589,2]
[322267656,1712920260666,-500.0,0.00029589,2]
[322267657,1712920260676,-500.0,0.00029589,2]
[322267658,1712920260685,-1033.56,0.00029589,2]
[322267659,1712920260695,-5530.8,0.00029589,2]
[322267660,1712920260704,-500.0,0.00029589,2]
[322267661,1712920260714,-500.0,0.00029589,2]
[322267662,1712920260724,-500.0,0.00029589,2]
[322267663,1712920260734,-930.87,0.00029589,2]
[322267664,1712920260744,-821.08,0.00029589,2]
[322267665,1712920260754,-500.0,0.00029589,2]
[322267666,1712920260764,-500.0,0.00029589,2]
[322267667,1712920260773,-500.0,0.00029589,2]
[322267668,1712920260783,-1035.94,0.00029589,2]
[322267669,1712920260792,-1904.72,0.00029589,2]
[322267670,1712920260803,-1717.34,0.00029589,2]
[322267671,1712920260814,-500.0,0.00029589,2]
[322267672,1712920260823,-500.0,0.00029589,2]
[322267673,1712920260833,-500.0,0.00029589,2]
[322267674,1712920260843,-2052.73,0.00029589,2]
[322267675,1712920260853,-641.93,0.00029589,2]
[322267676,1712920260863,-604.09,0.00029589,2]
[322267677,1712920260873,-1124.32,0.00029589,2]
[322267678,1712920260884,-1070.46,0.00029589,2]
[322267679,1712920260894,-500.0,0.00029589,2]
[322267680,1712920260904,-1062.21,0.00029589,2]
[322267681,1712920260914,-500.0,0.00029589,2]
[322267682,1712920260924,-604.39,0.00029589,2]
[322267683,1712920260934,-500.0,0.00029589,2]
[322267684,1712920260944,-500.0,0.00029589,2]
[322267685,1712920260956,-1229.15,0.00029589,2]
[322267686,1712920260965,-500.0,0.00029589,2]
[322267687,1712920260975,-9924.52,0.00029589,2]
[322267688,1712920260985,-500.0,0.00029589,2]
[322267689,1712920260997,-888.39,0.00029589,2]
[322267690,1712920261007,-1186.85,0.00029589,2]
[322267691,1712920261018,-500.0,0.00029589,2]
[322267692,1712920261028,-500.0,0.00029589,2]
[322267693,1712920261038,-500.0,0.00029589,2]
[322267694,1712920261049,-500.0,0.00029589,2]
[322267695,1712920261058,-618.15,0.00029589,2]
[322267696,1712920261069,-203.07197739,0.00029589,2]
[322267697,1712920261079,-500.0,0.00029589,2]
[322267698,1712920261088,-500.0,0.00029589,2]
[322267699,1712920261098,-510.32,0.00029589,2]
[322267700,1712920261108,-684.38,0.00029589,2]
[322267701,1712920261119,-800.47,0.00029589,2]
[322267702,1712920261129,-844.56,0.00029589,2]
[322267703,1712920261139,-500.0,0.00029589,2]
[322267704,1712920261148,-512.23,0.00029589,2]
[322267705,1712920261157,-500.0,0.00029589,2]
[322267706,1712920261167,-1528.81,0.00029589,2]
[322267707,1712920261176,-763.34,0.00029589,2]
[322267708,1712920261186,-500.0,0.00029589,2]
[322267709,1712920261195,-500.0,0.00029589,2]
[322267710,1712920261204,-3764.32,0.00029589,2]
[322267711,1712920261213,-1505.66,0.00029589,2]
[322267712,1712920261223,-500.0,0.00029589,2]
[322267713,1712920261233,-500.0,0.00029589,2]
[322267714,1712920261244,-925.96,0.00029589,2]
[322267715,1712920261254,-500.0,0.00029589,2]
[322267716,1712920261263,-500.0,0.00029589,2]
[322267717,1712920261273,-500.0,0.00029589,2]
[322267718,1712920261281,-558.68,0.00029589,2]
[322267719,1712920261292,-683.24,0.00029589,2]
[322267720,1712920261302,-19999.99,0.00029815,2]
[322267721,1712920261311,-1074.88,0.00029815,2]
[322267722,1712920261321,-29999.99,0.00029815,2]
[322267723,1712920261330,-500.0,0.00029863,2]
[322267724,1712920261340,-500.0,0.00029863,2]
[322267725,1712920261351,-500.0,0.00029863,2]
[322267726,1712920261361,-2625.19,0.00029863,2]
[322267727,1712920261371,-500.0,0.00029863,2]
[322267728,1712920261381,-500.0,0.00029863,2]
[322267729,1712920261391,-231.5923692,0.00029863,2]
[322267730,1712920261402,-500.0,0.00029863,2]
[322267731,1712920261411,-500.0,0.00029863,2]
[322267732,1712920261420,-500.0,0.00029863,2]
[322267733,1712920261430,-518.81704559,0.00029863,2]
[322267734,1712920261440,-500.0,0.00029863,2]
[322267735,1712920261450,-500.0,0.00029863,2]
[322267736,1712920261460,-150.0,0.00029863,2]
[322267737,1712920261470,-500.0,0.00029863,2]
[322267738,1712920261479,-500.0,0.00029863,2]
[322267739,1712920261489,-500.0,0.00029863,2]
[322267740,1712920261498,-500.0,0.00029863,2]
[322267741,1712920261508,-500.0,0.00029863,2]
[322267742,1712920261517,-500.0,0.00029863,2]
[322267743,1712920261527,-513.6,0.00029863,2]
[322267744,1712920261536,-500.0,0.00029863,2]
[322267745,1712920261546,-1076.28,0.00029863,2]
[322267746,1712920261555,-500.0,0.00029863,2]
[322267747,1712920261565,-500.0,0.00029863,2]
[322267748,1712920261574,-500.0,0.00029863,2]
[322267749,1712920261584,-4360.31,0.00029863,2]
[322267750,1712920261593,-500.0,0.00029863,2]
[322267751,1712920261603,-578.33,0.00029863,2]
[322267752,1712920261617,-589.66,0.00029863,2]
[322267753,1712920261626,-500.0,0.00029863,2]
[322267754,1712920261636,-500.0,0.00029863,2]
[322267755,1712920261646,-500.0,0.00029863,2]
[322267756,1712920261655,-500.0,0.00029863,2]
[322267757,1712920261664,-500.0,0.00029863,2]
[322267758,1712920261674,-500.0,0.00029863,2]
[322267759,1712920261684,-500.0,0.00029863,2]
[322267760,1712920261694,-834.74,0.00029863,2]
[322267761,1712920261703,-500.0,0.00029863,2]
[322267762,1712920261713,-500.0,0.00029863,2]
[322267763,1712920261723,-503.47,0.00029863,2]
[322267764,1712920261733,-550.78,0.00029863,2]
[322267765,1712920261743,-504.37,0.00029863,2]
[322267766,1712920261753,-459.28509658,0.00029863,2]
[322267767,1712920261763,-667.44,0.00029863,2]
[322267768,1712920261773,-500.0,0.00029863,2]
[322267769,1712920261782,-730.85,0.00029863,2]
[322267770,1712920261792,-500.0,0.00029863,2]
[322267771,1712920261802,-1391.19,0.00029863,2]
[322267772,1712920261813,-500.0,0.00029863,2]
[322267773,1712920261822,-724.59,0.00029863,2]
[322267774,1712920261832,-429.35412327,0.00029863,2]
[322267775,1712920262021,-652.05,0.00029863,2]
[322267776,1712920262031,-2207.75,0.00029863,2]
[322267777,1712920262040,-500.0,0.00029863,2]
[322267778,1712920262050,-500.0,0.00029863,2]
[322267779,1712920262059,-500.0,0.00029863,2]
[322267780,1712920262069,-500.0,0.00029863,2]
[322267781,1712920262079,-500.0,0.00029863,2]
[322267782,1712920262088,-1077.64,0.00029863,2]
[322267783,1712920262097,-500.0,0.00029863,2]
[322267784,1712920262107,-500.0,0.00029863,2]
[322267785,1712920262118,-500.0,0.00029863,2]
[322267786,1712920262128,-500.0,0.00029863,2]
[322267787,1712920262137,-500.0,0.00029863,2]
[322267788,1712920262147,-1068.06,0.00029863,2]
[322267789,1712920262157,-500.0,0.00029863,2]
[322267790,1712920262167,-1520.01,0.00029863,2]
[322267791,1712920262176,-2261.68,0.00029863,2]
[322267792,1712920262187,-1340.25,0.00029863,2]
[322267793,1712920262197,-500.0,0.00029863,2]
[322267794,1712920262206,-500.0,0.00029863,2]
[322267795,1712920262215,-1033.56,0.00029863,2]
[322267796,1712920262225,-5530.8,0.00029863,2]
[322267797,1712920262234,-500.0,0.00029863,2]
[322267798,1712920262244,-500.0,0.00029863,2]
[322267799,1712920262253,-500.0,0.00029863,2]
[322267800,1712920262262,-930.87,0.00029863,2]
[322267801,1712920262271,-821.08,0.00029863,2]
[322267802,1712920262280,-500.0,0.00029863,2]
[322267803,1712920262290,-500.0,0.00029863,2]
[322267804,1712920262299,-500.0,0.00029863,2]
[322267805,1712920262308,-1035.94,0.00029863,2]
[322267806,1712920262317,-1904.72,0.00029863,2]
[322267807,1712920262327,-1717.34,0.00029863,2]
[322267808,1712920262336,-500.0,0.00029863,2]
[322267809,1712920262346,-500.0,0.00029863,2]
[322267810,1712920262355,-472.61480548,0.00029863,2]
[322267811,1712920262366,-2052.73,0.00029863,2]
[322267812,1712920262376,-641.93,0.00029863,2]
[322267813,1712920262385,-604.09,0.00029863,2]
[322267814,1712920262395,-1124.32,0.00029863,2]
[322267815,1712920262404,-1070.46,0.00029863,2]
[322267816,1712920262414,-500.0,0.00029863,2]
[322267817,1712920262423,-1062.21,0.00029863,2]
[322267818,1712920262433,-508.11283974,0.00029863,2]
[322267819,1712920262442,-604.39,0.00029863,2]
[322267820,1712920262451,-500.0,0.00029863,2]
[322267821,1712920262461,-500.52698553,0.00029863,2]
[322267822,1712920262471,-1229.15,0.00029863,2]
[322267823,1712920262480,-500.0,0.00029863,2]
[322267824,1712920262490,-9924.52,0.00029863,2]
[322267825,1712920262499,-500.0,0.00029863,2]
[322267826,1712920262511,-888.39,0.00029863,2]
[322267827,1712920262520,-1186.85,0.00029863,2]
[322267828,1712920262530,-500.0,0.00029863,2]
[322267829,1712920262539,-500.0,0.00029863,2]
[322267830,1712920262549,-500.0,0.00029863,2]
[322267831,1712920262561,-532.52382139,0.00029863,2]
[322267832,1712920262571,-618.15,0.00029863,2]
[322267833,1712920262581,-500.0,0.00029863,2]
[322267834,1712920262591,-500.0,0.00029863,2]
[322267835,1712920262601,-684.38,0.00029863,2]
[322267836,1712920262610,-510.32,0.00029863,2]
[322267837,1712920262622,-800.47,0.00029863,2]
[322267838,1712920262632,-844.56,0.00029863,2]
[322267839,1712920262642,-500.0,0.00029863,2]
[322267840,1712920262652,-512.23,0.00029863,2]
[322267841,1712920262661,-500.0,0.00029863,2]
[322267842,1712920262670,-1528.81,0.00029863,2]
[322267843,1712920262680,-763.34,0.00029863,2]
[322267844,1712920262690,-500.0,0.00029863,2]
[322267845,1712920262699,-500.0,0.00029863,2]
[322267846,1712920262708,-3764.32,0.00029863,2]
[322267847,1712920262718,-1505.66,0.00029863,2]
[322267848,1712920262727,-500.0,0.00029863,2]
[322267849,1712920262737,-500.0,0.00029863,2]
[322267850,1712920262746,-925.96,0.00029863,2]
[322267851,1712920262755,-500.0,0.00029863,2]
[322267852,1712920262764,-500.0,0.00029863,2]
[322267853,1712920262774,-500.0,0.00029863,2]
[322267854,1712920262783,-683.24,0.00029863,2]
[322267855,1712920262792,-156.11551096,0.00029891,2]
[322267856,1712920262803,-594.70721441,0.0003,2]
[322267857,1712920262814,-6941.74361707,0.0003,2]
[322267858,1712920262823,-5677.46353067,0.0003,2]
[322267859,1712920262832,-374.75147023,0.0003,2]
[322267860,1712920262843,-455.35697942,0.0003,2]
[322267861,1712920262852,-346.90489101,0.0003,2]
[322267862,1712920262862,-168.38908209,0.0003,2]
[322267863,1712920262873,-762.33312936,0.0003,2]
[322267864,1712920262883,-500.0,0.0003,3]
[322267865,1712920262892,-206.0,0.0003,2]
[322267866,1712920262901,-5000.0,0.000301,4]
[322267867,1712920262911,-600.39,0.00030132,2]
[322267868,1712920262920,-500.0,0.00030136,2]
[322267869,1712920262929,-500.0,0.00030136,2]
[322267870,1712920262938,-2625.19,0.00030136,2]
[322267871,1712920262948,-290.19,0.00030136,2]
[322267872,1712920262957,-500.0,0.00030136,2]
[322267873,1712920262966,-500.0,0.00030136,2]
[322267874,1712920262975,-393.32227434,0.00030136,2]
[322267875,1712920262984,-500.0,0.00030136,2]
[322267876,1712920262994,-460.7479823,0.00030136,2]
[322267877,1712920263003,-500.0,0.00030136,2]
[322267878,1712920263012,-150.0,0.00030136,2]
[322267879,1712920263021,-500.0,0.00030136,2]
[322267880,1712920263031,-500.0,0.00030136,2]
[322267881,1712920263040,-398.49740418,0.00030136,2]
[322267882,1712920263050,-500.0,0.00030136,2]
[322267883,1712920263060,-500.0,0.00030136,2]
[322267884,1712920263069,-500.0,0.00030136,2]
[322267885,1712920263078,-513.6,0.00030136,2]
[322267886,1712920263088,-500.0,0.00030136,2]
[322267887,1712920263097,-1076.28,0.00030136,2]
[322267888,1712920263107,-500.0,0.00030136,2]
[322267889,1712920263117,-220.82843786,0.00030136,2]
[322267890,1712920263127,-500.0,0.00030136,2]
[322267891,1712920263136,-4360.31,0.00030136,2]
[322267892,1712920263145,-500.0,0.00030136,2]
[322267893,1712920263154,-578.33,0.00030136,2]
[322267894,1712920263164,-589.66,0.00030136,2]
[322267895,1712920263175,-350.12034343,0.00030136,2]
[322267896,1712920263184,-500.0,0.00030136,2]
[322267897,1712920263196,-500.0,0.00030136,2]
[322267898,1712920263207,-436.31978906,0.00030136,2]
[322267899,1712920263217,-500.0,0.00030136,2]
[322267900,1712920263226,-500.0,0.00030136,2]
[322267901,1712920263235,-500.0,0.00030136,2]
[322267902,1712920263245,-834.74,0.00030136,2]
[322267903,1712920263254,-500.0,0.00030136,2]
[322267904,1712920263263,-500.0,0.00030136,2]
[322267905,1712920263272,-503.47,0.00030136,2]
[322267906,1712920263282,-550.78,0.00030136,2]
[322267907,1712920263291,-504.37,0.00030136,2]
[322267908,1712920263300,-667.44,0.00030136,2]
[322267909,1712920263310,-500.0,0.00030136,2]
[322267910,1712920263319,-730.85,0.00030136,2]
[322267911,1712920263329,-500.0,0.00030136,2]
[322267912,1712920263338,-1391.19,0.00030136,2]
[322267913,1712920263347,-602.03180547,0.00030136,2]
[322267914,1712920263356,-724.59,0.00030136,2]
[322267915,1712920263367,-652.05,0.00030136,2]
[322267916,1712920263377,-2207.75,0.00030136,2]
[322267917,1712920263386,-500.0,0.00030136,2]
[322267918,1712920263395,-500.0,0.00030136,2]
[322267919,1712920263405,-500.0,0.00030136,2]
[322267920,1712920263415,-500.0,0.00030136,2]
[322267921,1712920263425,-532.15137175,0.00030136,2]
[322267922,1712920263434,-1077.64,0.00030136,2]
[322267923,1712920263444,-500.0,0.00030136,2]
[322267924,1712920263454,-500.0,0.00030136,2]
[322267925,1712920263463,-500.0,0.00030136,2]
[322267926,1712920263473,-500.0,0.00030136,2]
[322267927,1712920263483,-500.0,0.00030136,2]
[322267928,1712920263492,-500.0,0.00030136,2]
[322267929,1712920263501,-1520.01,0.00030136,2]
[322267930,1712920263511,-1068.06,0.00030136,2]
[322267931,1712920263520,-2261.68,0.00030136,2]
[322267932,1712920263530,-1340.25,0.00030136,2]
[322267933,1712920263539,-500.0,0.00030136,2]
[322267934,1712920263549,-500.0,0.00030136,2]
[322267935,1712920263559,-1033.56,0.00030136,2]
[322267936,1712920263569,-5530.8,0.00030136,2]
[322267937,1712920263578,-500.0,0.00030136,2]
[322267938,1712920263588,-500.0,0.00030136,2]
[322267939,1712920263597,-439.65455482,0.00030136,2]
[322267940,1712920263606,-930.87,0.00030136,2]
[322267941,1712920263618,-821.08,0.00030136,2]
[322267942,1712920263627,-500.0,0.00030136,2]
[322267943,1712920263637,-500.0,0.00030136,2]
[322267944,1712920263646,-500.0,0.00030136,2]
[322267945,1712920263655,-1035.94,0.00030136,2]
[322267946,1712920263665,-1904.72,0.00030136,2]
[322267947,1712920263674,-1717.34,0.00030136,2]
[322267948,1712920263684,-500.0,0.00030136,2]
[322267949,1712920263694,-500.0,0.00030136,2]
[322267950,1712920263703,-2052.73,0.00030136,2]
[322267951,1712920263712,-641.93,0.00030136,2]
[322267952,1712920263722,-604.09,0.00030136,2]
[322267953,1712920263731,-1124.32,0.00030136,2]
[322267954,1712920263741,-1070.46,0.00030136,2]
[322267955,1712920263751,-500.0,0.00030136,2]
[322267956,1712920263761,-1062.21,0.00030136,2]
[322267957,1712920263771,-604.39,0.00030136,2]
[322267958,1712920263780,-500.0,0.00030136,2]
[322267959,1712920263791,-1229.15,0.00030136,2]
[322267960,1712920263800,-500.0,0.00030136,2]
[322267961,1712920263814,-9924.52,0.00030136,2]
[322267962,1712920263823,-500.0,0.00030136,2]
[322267963,1712920263833,-888.39,0.00030136,2]
[322267964,1712920263844,-1186.85,0.00030136,2]
[322267965,1712920263854,-500.0,0.00030136,2]
[322267966,1712920263866,-500.0,0.00030136,2]
[322267967,1712920263876,-500.0,0.00030136,2]
[322267968,1712920263885,-618.15,0.00030136,2]
[322267969,1712920263894,-500.0,0.00030136,2]
[322267970,1712920263905,-500.0,0.00030136,2]
[322267971,1712920263915,-510.32,0.00030136,2]
[322267972,1712920263924,-684.38,0.00030136,2]
[322267973,1712920263934,-800.47,0.00030136,2]
[322267974,1712920263943,-844.56,0.00030136,2]
[322267975,1712920263955,-500.0,0.00030136,2]
[322267976,1712920263964,-512.23,0.00030136,2]
[322267977,1712920263973,-500.0,0.00030136,2]
[322267978,1712920263982,-1528.81,0.00030136,2]
[322267979,1712920263992,-763.34,0.00030136,2]
[322267980,1712920264002,-500.0,0.00030136,2]
[322267981,1712920264012,-500.0,0.00030136,2]
[322267982,1712920264021,-3764.32,0.00030136,2]
[322267983,1712920264030,-1505.66,0.00030136,2]
[322267984,1712920264039,-500.0,0.00030136,2]
[322267985,1712920264048,-500.0,0.00030136,2]
[322267986,1712920264058,-925.96,0.00030136,2]
[322267987,1712920264067,-500.0,0.00030136,2]
[322267988,1712920264076,-500.0,0.00030136,2]
[322267989,1712920264085,-500.0,0.00030136,2]
[322267990,1712920264095,-683.24,0.00030136,2]
[322267991,1712920264104,-228.83,0.00030137,2]
[322267992,1712920264116,-535.0,0.00030137,2]
[322267993,1712920264125,-643.0,0.00030137,2]
[322267994,1712920264134,-180.0,0.00030258,2]
[322267995,1712920264143,-500.0,0.0003041,2]
[322267996,1712920264152,-500.0,0.0003041,2]
[322267997,1712920264161,-2625.19,0.0003041,2]
[322267998,1712920264170,-500.0,0.0003041,2]
[322267999,1712920264180,-302.90441447,0.0003041,2]
[322268000,1712920264189,-500.0,0.0003041,2]
[322268001,1712920264197,-500.0,0.0003041,2]
[322268002,1712920264207,-213.81610656,0.0003041,2]
[322268003,1712920264215,-500.0,0.0003041,2]
[322268004,1712920264224,-500.0,0.0003041,2]
[322268005,1712920264233,-500.0,0.0003041,2]
[322268006,1712920264242,-500.0,0.0003041,2]
[322268007,1712920264251,-500.0,0.0003041,2]
[322268008,1712920264260,-513.6,0.0003041,2]
[322268009,1712920264269,-500.0,0.0003041,2]
[322268010,1712920264279,-1076.28,0.0003041,2]
[322268011,1712920264288,-395.56031077,0.0003041,2]
[322268012,1712920264297,-500.0,0.0003041,2]
[322268013,1712920264306,-4360.31,0.0003041,2]
[322268014,1712920264315,-255.15228615,0.0003041,2]
[322268015,1712920264324,-578.33,0.0003041,2]
[322268016,1712920264332,-589.66,0.0003041,2]
[322268017,1712920264341,-500.0,0.0003041,2]